{"text_format":"2","workbook":"xlsx","n_sheets":13,"sheets":["Landkreis Bautzen","Erzgebirgskreis","Landkreis Görlitz","Landkreis Leipzig","Landkreis Meißen","Landkreis Mittelsachsen","Landkreis Nordsachsen","Landkreis Sächs.Schweiz Osterzg","Vogtlandkreis","Landkreis Zwickau","Stadt Chemnitz","Stadt Leipzig","Stadt Dresden"],"not_rendered":{"charts":0,"images":0,"macros":0,"external_links":0,"defined_names":0,"comments":0,"pivot_tables":0},"unopened":[],"bounds":{"document_bytes":16777216,"sheet_cells":100000,"run_cost":"one","rows_first":2000,"rows_last":500,"rows_between":2000,"halvings":0,"cell_chars":16384,"cell_head_chars":4096},"cells_cut":0,"cells_raw":0,"read":"whole","date_system":"1900"}

{"sheet":"Landkreis Bautzen","index":0,"n_rows":13,"n_cols":3,"rows_kept":13,"cut":false,"hidden":false,"merged":[[0,1,0,2],[0,0,1,0]]}
["LANDKREIS BAUTZEN",2027]
[null,1,"125%*"]
["Bautzener Land (Cunewalde, Doberschau-Gaußig, Göda, Großdubrau, Großpostwitz/O.L., Hochkirch, Königswartha, Kubschütz, Malschwitz, Neschwitz, Obergurig, Puschwitz, Radibor, Schirgiswalde-Kirschau, Sohland a.d. Spree, Weißenberg, Wilthen )",371.88,{"$f":"B3*1.25","v":464.85}]
["Bischofswerdaer Land (Burkau, Demitz-Thumitz, Frankenthal, Großhartau, Großröhrsdorf, Lichtenberg, Neukirch/Lausitz, Ohorn, Pulsnitz, Rammenau, Schmölln-Putzkau, Steinigtwolmsdorf)",429.12,536.4]
["Dresdener Land (Arnsdorf, Ottendorf-Okrilla, Radeberg, Wachau)",420.71,525.88749999999993]
["Hoyerswerdaer Land (Bernsdorf, Elsterheide, Lauta, Lohsa, Spreetal, Wittichenau)",422.33,527.91250000000002]
["Kamenzer Land (Crostwitz, Elstra, Großnaundorf, Haselbachtal, Königsbrück, Laußnitz, Nebelschütz, Neukirch, Oßling, Panschwitz-Kuckau, Räckelwitz, Ralbitz-Rosenthal. Schwepnitz, Steina)",420.2,525.25]
["Stadt Bautzen",405.12,506.4]
["Stadt Bischofswerda",388.41,485.51250000000005]
["Stadt Hoyerswerda",353.93,442.41250000000002]
["Stadt Kamenz",417.56,521.95000000000005]
[]
["* Voraussetzung zur Berücksichtigung der 125%-Grenze ist die Ausweisung zusätzlicher Kosten nach § 42a Abs. 5 Satz 4 SGXII im Vertrag über die Unterkunftskosten, wie Möblierungszuschlag, Strom usw."]

{"sheet":"Erzgebirgskreis","index":1,"n_rows":9,"n_cols":3,"rows_kept":9,"cut":false,"hidden":false,"merged":[[0,0,1,0],[0,1,0,2]]}
["ERZGEBIRGSKREIS",2027]
[null,1,"125%*"]
["Region A (Amtsberg, Aue-Bad Schlema, Auerbach, Burkhardtsdorf, Gornau, Gornsdorf, Hohndorf, Jahnsdorf, Lauter-Bernsbach, Lößnitz, Lugau, Neukirchen, Niederdorf, Niederwürschnitz, Oelsnitz, Schneeberg, Schwarzenberg, Stollberg, Thalheim, Zschopau)",376.68,{"$f":"B3*1.25","v":470.85}]
["Region B (Bockau, Breitenbrunn, Eibenstock, Johanngeorgenstadt, Schönheide, Stützengrün, Zschorlau)",374.98,{"$f":"B4*1.25","v":468.72500000000002}]
["Region C (Crottendorf, Drebach, Ehrenfriedersdorf, Elterlein, Gelenau, Geyer, Grünhain-Beierfeld, Oberwiesenthal, Raschau-Markersbach, Scheibenberg, Schlettau, Sehmatal, Tannenberg, Thum, Zwönitz)",372.19,465.23750000000001]
["Region D (Bärenstein, Deutschneudorf, Großolbersdorf, Großrückerswalde, Grünhainichen, Heidersdorf, Jöhstadt, Königswalde, Marienberg, Mildenau, Olbernhau, Pfaffroda, Pockau-Lengefeld, Seiffen, Thermalbad Wiesenbad, Wolkenstein)",373.82,467.27499999999998]
["Region E (Annaberg-Buchholz)",389.82,487.27499999999998]
[]
["* Voraussetzung zur Berücksichtigung der 125%-Grenze ist die Ausweisung zusätzlicher Kosten nach § 42a Abs. 5 Satz 4 SGXII im Vertrag über die Unterkunftskosten, wie Möblierungszuschlag, Strom usw."]

{"sheet":"Landkreis Görlitz","index":2,"n_rows":13,"n_cols":3,"rows_kept":13,"cut":false,"hidden":false,"merged":[[0,0,1,0],[0,1,0,2]]}
["LANDKREIS GÖRLITZ",2027]
[null,1,"125%*"]
["Planungsraum 1: Weißwasser Land (Bad Muskau, Boxberg/O.L., Gablenz, Groß Düben, Krauschwitz i.d. O.L., Kreba-Neudorf, Rietschen, Schleife, Trebendorf, Weißkeißel)",389.44,{"$f":"B3*1.25","v":486.8}]
["Planungsraum 1Z: Weißwasser Stadt",375.16,{"$f":"B4*1.25","v":468.95000000000005}]
["Planungsraum 2: Niesky Land (Hähnichen, Hohendubrau, Horka, Kodersdorf, Königshain, Markersdorf, Mücka, Neißeaue, Quitzdorf am See, Stadt Reichenbach/O.L., Stadt Rothenburg/O.L., Schöpstal, Vierkirchen, Waldhufen)",391.29,489.11250000000001]
["Planungsraum 2Z: Niesky Stadt",436.7,545.875]
["Planungsraum 3: Stadt Görlitz",405.03,506.28749999999997]
["Planungsraum 4: Löbau Land (Beiersdorf, Dürrhennersdorf, Ebersbach-Neugersdorf, Großschweidnitz, Kottmar, Lawalde, Neusalza-Spremberg, Oppach, Rosenbach, Schönbach, Seifhennersdorf)",372.3,465.375]
["Planungsraum 4Z: Löbau Stadt",429.85,537.3125]
["Planungsraum 5: Zittau Land (Bernstadt a.d. Eigen, Bertsdorf-Hörnitz, Großschönau, Hainewalde, Herrnhut, Kurort Jonsdorf, Leutersdorf, Mittelherwigsdorf, Oderwitz, Olbersdorf, Ostritz, Oybin, Schönau-Berzdorf a.d. Eigen)",409.15,511.4375]
["Planungsraum 5Z: Zittau Stadt",406.8,508.5]
[]
["* Voraussetzung zur Berücksichtigung der 125%-Grenze ist die Ausweisung zusätzlicher Kosten nach § 42a Abs. 5 Satz 4 SGXII im Vertrag über die Unterkunftskosten, wie Möblierungszuschlag, Strom usw."]

{"sheet":"Landkreis Leipzig","index":3,"n_rows":11,"n_cols":3,"rows_kept":11,"cut":false,"hidden":false,"merged":[[0,0,1,0],[0,1,0,2]]}
["LANDKREIS LEIPZIG",2027]
[null,1,"125%*"]
["LK Ost (Bennewitz, Borsdorf, Brandis, Lossatal, Machern, Thallwitz, Trebsen, Wurzen)",386.68,{"$f":"B3*1.25","v":483.35}]
["Markranstädt",435.11,{"$f":"B4*1.25","v":543.88750000000005}]
["Markkleeberg",441.8,552.25]
["Grimma",391.47,489.33750000000003]
["Borna",394.83,493.53749999999997]
["LK Mitte (Bad Lausick, Belgershain,Colditz, Frohburg, Geithain, Kitzscher, Naunhof, Otterwisch, Parthenstein) ",397.03,496.28749999999997]
["LK West (Böhlen, Elstertrebnitz, Groitzsch, Großpösna, Neukieritzsch, Pegau, Regis-Breitingen, Rötha, Zwenkau)",392.05,490.0625]
[]
["* Voraussetzung zur Berücksichtigung der 125%-Grenze ist die Ausweisung zusätzlicher Kosten nach § 42a Abs. 5 Satz 4 SGXII im Vertrag über die Unterkunftskosten, wie Möblierungszuschlag, Strom usw."]

{"sheet":"Landkreis Meißen","index":4,"n_rows":12,"n_cols":3,"rows_kept":12,"cut":false,"hidden":false,"merged":[[0,0,1,0],[0,1,0,2]]}
["LANDKREIS MEIßEN",2027]
[null,1,"125%*"]
["Vergleichsraum 1: Stadt Riesa",377.09,{"$f":"B3*1.25","v":471.36249999999995}]
["Vergleichsraum 2: Stadt Coswig, Stadt Meißen",394.82,493.52499999999998]
["Vergleichsraum 3: Stadt Großenhain",370.5,463.125]
["Vergleichsraum 4: Stadt Radebeul",425.7,532.125]
["Vergleichsraum 5: Dresdner Umland (Gem. Moritzburg, Gem. Niederau, Stadt Radeburg, Gem. Weinböhla)",394.3,492.875]
["Vergleichsraum 6: Erweiterte Großenhainer Pflege (Gem. Diera-Zehren [rechtselbisch], Gem. Ebersbach, Gem. Priestewitz, VG Schönfeld (Schönfeld, Gem. Lampertswalde), VG Thiendorf (Thiendorf, Tauscha)",331.29,414.11250000000001]
["Vergleichsraum 7: Lommatzscher Pflege (Gem. Diera-Zehren [linkselbisch], Gem. Hirschstein, Gem. Käbschütztal, Gem. Klipphausen, Stadt Lommatzsch, Stadt Nossen, Gem. Stauchitz)",358.59,448.23749999999995]
["Vergleichsraum 8: Nord-West (Stadt Gröditz, Gem. Nünchritz, Gem. Glaubitz, Gem. Röderaue, Gem. Wülknitz, Stadt Strehla, Gem. Zeithain)",359.13,448.91250000000002]
[]
["* Voraussetzung zur Berücksichtigung der 125%-Grenze ist die Ausweisung zusätzlicher Kosten nach § 42a Abs. 5 Satz 4 SGXII im Vertrag über die Unterkunftskosten, wie Möblierungszuschlag, Strom usw."]

{"sheet":"Landkreis Mittelsachsen","index":5,"n_rows":9,"n_cols":3,"rows_kept":9,"cut":false,"hidden":false,"merged":[[0,1,0,2],[0,0,1,0]]}
["LANDKREIS MITTELSACHSEN",2027]
[null,1,"125%*"]
["Freiberg",396.51,{"$f":"B3*1.25","v":495.63749999999999}]
["Mittelbereich Freiberg (Bobritzsch-Hilbersdorf, Stadt Brand-Erbisdorf, Eppendorf, Stadt Frauenstein, Großhartmannsdorf, Stadt Großschirma, Halsbrücke, VG Lichtenberg/Erzgebirge (Lichtenberg, Weißborn), Mulda/Sa., Neuhausen/Erzgeb., Oberschöna, Stadt Oederan, Rechenberg-Bienenmühle, Reinsberg und VG Sayda (Sayda und Dorfchemnitz))",373.3,{"$f":"B4*1.25","v":466.625}]
["Mittelbereich Döbeln (Stadt Döbeln, Großweitzschen, Stadt Hartha, Jahnatal, Stadt Leisnig, Stadt Roßwein, Striegistal und Stadt Waldheim)",392.84,491.04999999999995]
["Mittelbereich Mittweida (Erlau, Stadt Geringswalde, Stadt Hainichen, Königshain-Wiederau, Kriebstein, VG Mittweida (Mittweida, Altmittweida), VG Rochlitz (Rochlitz, Königsfeld, Seelitz, Zettlitz), Rossau und Wechselburg)",387.18,483.97500000000002]
["Umland Chemnitz (Stadt Augustusburg, VG Burgstädt (Burgstädt, Mühlau, Taura), Claußnitz, Stadt Flöha, Stadt Frankenberg, Hartmannsdorf, Leubsdorf, Lichtenau, Stadt Lunzenau, Niederwiesa und Stadt Penig)",384.37,480.46249999999998]
[]
["* Voraussetzung zur Berücksichtigung der 125%-Grenze ist die Ausweisung zusätzlicher Kosten nach § 42a Abs. 5 Satz 4 SGXII im Vertrag über die Unterkunftskosten, wie Möblierungszuschlag, Strom usw."]

{"sheet":"Landkreis Nordsachsen","index":6,"n_rows":7,"n_cols":3,"rows_kept":7,"cut":false,"hidden":false,"merged":[[0,0,1,0],[0,1,0,2]]}
["LANDKREIS NORDSACHSEN",2027]
[null,1,"125%*"]
["Vergleichsraum 01 (Jesewitz, Krostitz, Rackwitz, Schkeuditz, Taucha)",424.62,{"$f":"B3*1.25","v":530.77499999999998}]
["Vergleichsraum 02 (Bad Düben, Delitzsch, Löbnitz, Schönwölkau, Wiedermar, Zschepplin)",339.99,{"$f":"B4*1.25","v":424.98750000000001}]
["Vergleichsraum 03 (Arzberg, Beilrode, Belgern-Schildau, Cavertitz, Dahlen, Doberschütz, Dommitzsch, Dreiheide, Eilenburg, Elsnig, Laußig, Liebschützberg, Mockrehna, Mügeln, Naundorf, Oschatz, Torgau, Trossin, Wermsdorf)",380.45,475.5625]
[]
["* Voraussetzung zur Berücksichtigung der 125%-Grenze ist die Ausweisung zusätzlicher Kosten nach § 42a Abs. 5 Satz 4 SGXII im Vertrag über die Unterkunftskosten, wie Möblierungszuschlag, Strom usw."]

{"sheet":"Landkreis Sächs.Schweiz Osterzg","index":7,"n_rows":10,"n_cols":3,"rows_kept":10,"cut":false,"hidden":false,"merged":[[0,1,0,2],[0,0,1,0]]}
["LANDKREIS SÄCHS. SCHWEIZ OSTERZGEBIRGE",2027]
[null,1,"125%*"]
["Vergleichsraum 1 (Bannewitz, Stadt Freital, Stadt Wilsdruff)",419.31,{"$f":"B3*1.25","v":524.13750000000005}]
["Vergleichsraum 2 (Kreischa, Stadt Rabenau, Stadt Dippoldiswalde, VG Dohna-Müglitztal (Dohna, Müglitztal), VG Klingenberg (Klingenberg, Hartmannsdorf-Reichenau), VG Tharandt (Tharandt, Dorfhain))",433.81,{"$f":"B4*1.25","v":542.26250000000005}]
["Vergleichsraum 3 (Stadt Glashütte, VG Altenberg (Altenberg, Hermsdorf), VG Bad Gottleuba-Berggießhübel (Bad Gottleuba-Berggießhübel, Bahretal, Liebstadt), VG Königstein (Königstein, Gohrisch, Rathen, Rosenthalö-Bielatal, Struppen))",413.29,516.61250000000007]
["Vergleichsraum 4 (Stadt Heidenau, VG Pirna (Pirna, Dohma))",418.34,522.92499999999995]
["Vergleichsraum 5 (Dürrröhrsdorf-Dittersbach, Stadt Stolpen, VG Lohmen (Lohmen, Stadt Wehlen),  Stadt Hohnstein)",346.41,433.01250000000005]
["Vergleichsraum 6 (Stadt Neustadt i.Sa., Stadt Sebnitz, VG Bad Schandau (Bad Schandau, Rathmannsdorf, Reinhardtsdorf-Schöna))",370.72,463.40000000000003]
[]
["* Voraussetzung zur Berücksichtigung der 125%-Grenze ist die Ausweisung zusätzlicher Kosten nach § 42a Abs. 5 Satz 4 SGXII im Vertrag über die Unterkunftskosten, wie Möblierungszuschlag, Strom usw."]

{"sheet":"Vogtlandkreis","index":8,"n_rows":8,"n_cols":3,"rows_kept":8,"cut":false,"hidden":false,"merged":[[0,0,1,0],[0,1,0,2]]}
["VOGTLANDKREIS",2027]
[null,1,"125%*"]
["Vergleichsraum Plauen (Stadt Plauen, Stadt Elsterberg, Verwaltungsverband Jägerswald (Bergen, Theuma, Tirpersdorf, Werda), Stadt Pausa-Mühltroff, Pöhl, Rosenbach, Verwaltungsgemeinschaft Treuen (Neuensalz, Treuen), Weischlitz)",320.27,{"$f":"B3*1.25","v":400.33749999999998}]
["Vergleichsraum Oelsnitz (Stadt Adorf/Vogtl., Bad Brambach, Stadt Bad Elster, Stadt Markneukirchen; Verwaltungsgemeinschaft Oelsnitz (Bösenbrunn, Eichigt, Oelsnitz, Triebel), Verwaltungsgemeinschaft Schöneck/Mühlental (Schöneck, Mühlental))",321.06,{"$f":"B4*1.25","v":401.32499999999999}]
["Vergleichsraum Auerbach (Stadt Auerbach/Vogtl., Ellefeld, Verwaltungsgemeinschaft Falkenstein (Grünbach, Neustadt, Falkenstein), Stadt Klingenthal, Stadt Lengenfeld, Muldenhammer, Stadt Rodewisch, Steinberg/Vogl.)",326.83999999999997,408.54999999999995]
["Vergleichsraum Reichenbach (Verwaltungsgemeinschaft Netzschkau-Limbach (Limbach, Netzschkau), Neumark, Verwaltungsgemeinschaft Reichenbachn (Heinsdorfergrund, Reichenbach))",328.35,410.4375]
[]
["* Voraussetzung zur Berücksichtigung der 125%-Grenze ist die Ausweisung zusätzlicher Kosten nach § 42a Abs. 5 Satz 4 SGXII im Vertrag über die Unterkunftskosten, wie Möblierungszuschlag, Strom usw."]

{"sheet":"Landkreis Zwickau","index":9,"n_rows":9,"n_cols":3,"rows_kept":9,"cut":false,"hidden":false,"merged":[[0,0,1,0],[0,1,0,2]]}
["LANDKREIS ZWICKAU",2027]
[null,1,"125%*"]
["Vergleichsraum 1 (Stadt Zwickau)",376.57,{"$f":"B3*1.25","v":470.71249999999998}]
["Vergleichsraum 2 (Fraureuth, Werdau, Langenbernsdorf, Neukirchen, Crimmitschau)",372.53999999999996,{"$f":"B4*1.25","v":465.67499999999995}]
["Vergleichsraum 3 (Dennheritz, Meerane, Schönberg, Oberwiera, Waldenburg, Remse, Glauchau)",370.15,462.6875]
["Vergleichsraum 4 (Niederfrohna, Limbach-Oberfrohna, Callenberg, Hohenstein-Ernstthal, Oberlungwitz, St. Egidien, Bernsdorf, Gersdorf, Lichtenstein, Mülsen)",366.77,458.46249999999998]
["Vergleichsraum 5 (Reinsdorf, Wildenfels, Hartenstein, Langenweißbach, Wilkau-Haßlau, Kirchberg, Hartmannsdorf, Crinitzberg, Hirschfeld, Lichtentanne)",381.1,476.375]
[]
["* Voraussetzung zur Berücksichtigung der 125%-Grenze ist die Ausweisung zusätzlicher Kosten nach § 42a Abs. 5 Satz 4 SGXII im Vertrag über die Unterkunftskosten, wie Möblierungszuschlag, Strom usw."]

{"sheet":"Stadt Chemnitz","index":10,"n_rows":5,"n_cols":3,"rows_kept":5,"cut":false,"hidden":false,"merged":[[0,0,1,0],[0,1,0,2]]}
["STADT CHEMNITZ",2027]
[null,1,"125%*"]
[null,389.47,{"$f":"B3*1.25","v":486.83750000000003}]
[]
["* Voraussetzung zur Berücksichtigung der 125%-Grenze ist die Ausweisung zusätzlicher Kosten nach § 42a Abs. 5 Satz 4 SGXII im Vertrag über die Unterkunftskosten, wie Möblierungszuschlag, Strom usw."]

{"sheet":"Stadt Leipzig","index":11,"n_rows":5,"n_cols":3,"rows_kept":5,"cut":false,"hidden":false,"merged":[[0,0,1,0],[0,1,0,2]]}
["STADT LEIPZIG",2027]
[null,1,"125%*"]
[null,427.36,{"$f":"B3*1.25","v":534.20000000000005}]
[]
["* Voraussetzung zur Berücksichtigung der 125%-Grenze ist die Ausweisung zusätzlicher Kosten nach § 42a Abs. 5 Satz 4 SGXII im Vertrag über die Unterkunftskosten, wie Möblierungszuschlag, Strom usw."]

{"sheet":"Stadt Dresden","index":12,"n_rows":5,"n_cols":3,"rows_kept":5,"cut":false,"hidden":false,"merged":[[0,0,1,0],[0,1,0,2]]}
["STADT DRESDEN",2027]
[null,1,"125%*"]
[null,463.19,{"$f":"B3*1.25","v":578.98749999999995}]
[]
["* Voraussetzung zur Berücksichtigung der 125%-Grenze ist die Ausweisung zusätzlicher Kosten nach § 42a Abs. 5 Satz 4 SGXII im Vertrag über die Unterkunftskosten, wie Möblierungszuschlag, Strom usw."]